bitfinex-derivatives/quotes_SOLF0:USTF0_20260207
["timestamp","ask_amount","ask_price","bid_price","bid_amount"]
[1770451304327,52.29489682,85.206,85.155,10.5761]
[1770451305431,52.29489682,85.206,85.164,10.575]
[1770451305624,52.29489682,85.206,85.131,35.19]
[1770451305821,52.18615329,85.199,85.12,14.77854899]
[1770451306427,52.18615329,85.197,85.12,14.77854899]
[1770451306824,52.18615329,85.197,85.121,35.19]
[1770451307019,52.23641677,85.219,85.14,14.77854899]
[1770451307324,52.23641677,85.217,85.14,14.77854899]
[1770451307521,52.23641677,85.215,85.14,14.77854899]
[1770451307722,52.23641677,85.213,85.121,35.19]
[1770451307922,52.23623281,85.211,85.14,14.77854899]
[1770451308119,52.23623281,85.209,85.118,35.19]
[1770451308327,52.23623281,85.204,85.153,10.5763]
[1770451308534,52.23623281,85.202,85.153,10.5763]
[1770451308727,52.23623281,85.202,85.13,14.77854899]
[1770451308728,52.19572333,85.2,85.13,14.77854899]
[1770451309029,52.19572333,85.193,85.135,10.5785]
[1770451309231,52.19572333,85.191,85.135,10.5785]
[1770451309428,52.19572333,85.189,85.11,14.77854899]
[1770451309633,52.19572333,85.169,85.09,14.77854899]
[1770451310132,52.19554135,85.167,85.09,14.77854899]
[1770451310433,52.19554135,85.165,85.09,14.77854899]
[1770451311129,52.19554135,85.165,85.102,10.5826]
[1770451311527,52.30254475,85.163,85.102,10.5826]
[1770451311832,52.30254475,85.163,85.113,10.5813]
[1770451312332,52.30254475,85.163,85.082,2.04402285]
[1770451312333,52.30237268,85.159,85.082,2.04402285]
[1770451312532,52.30237268,85.157,85.091,10.584]
[1770451312936,52.30237268,85.157,85.1,14.77854899]
[1770451313531,52.18557533,85.178,85.125,10.5797]
[1770451313937,52.18540108,85.176,85.125,10.5797]
[1770451314824,8.72826905,85.175,85.125,10.5797]
[1770451315031,52.21450412,85.174,85.125,10.5797]
[1770451317439,60.98523612,85.173,85.12,14.77854899]
[1770451317630,52.24746032,85.173,85.12,14.77854899]
[1770451318031,52.24729707,85.171,85.1,14.77854899]
[1770451318232,52.24729707,85.169,85.1,14.77854899]
[1770451318538,52.24729707,85.169,85.055,164.7113]
[1770451318539,52.24729707,85.167,85.08,14.77854899]
[1770451318740,52.24729707,85.165,85.08,14.77854899]
[1770451318937,52.75777198,85.163,85.08,14.77854899]
[1770451319238,52.75777198,85.161,85.1,14.77854899]
[1770451319433,52.75777198,85.159,85.1,14.77854899]
[1770451319830,52.75777198,85.159,85.106,10.5822]
[1770451320134,52.75777198,85.159,85.09,14.77854899]
[1770451320333,52.75763737,85.157,85.09,14.77854899]
[1770451320533,52.75763737,85.174,85.11,14.77854899]
[1770451321040,52.75763737,85.174,85.14,10.578]
[1770451321235,52.75763737,85.174,85.13,14.77854899]
[1770451321834,52.75763737,85.174,85.136,10.5784]
[1770451322034,52.75763737,85.174,85.11,14.77854899]
[1770451322239,52.64846126,85.169,85.08,76.77854899]
[1770451322441,52.64846126,85.167,85.08,76.77854899]
[1770451322643,52.64846126,85.163,85.101,10.5827]
[1770451322841,10.575,85.164,85.101,10.5827]
[1770451322842,52.83739709,85.161,85.101,10.5827]
[1770451323138,10.5757,85.158,85.101,10.5827]
[1770451323445,52.83739709,85.149,85.085,10.5847]
[1770451323736,52.83739709,85.147,85.062,2.04423898]
[1770451323940,52.8372723,85.141,85.086,10.5846]
[1770451325049,52.74044626,85.159,85.08,14.77854899]
[1770451325247,35.19,85.199,85.05,49.96854899]
[1770451325248,52.74044626,85.139,85.05,14.77854899]
[1770451325544,52.74044626,85.137,85.052,2.04447917]
[1770451325842,52.74044626,85.135,85.052,2.04447917]
[1770451326035,63.31911991,85.133,85.07,10.5866]
[1770451328046,52.40119775,85.131,85.07,10.5866]
[1770451328246,52.40119775,85.129,85.07,10.5866]
[1770451329357,52.40119775,85.129,85.05,14.77854899]
[1770451329545,52.40119775,85.129,85.05,49.96854899]
[1770451329745,52.40119775,85.129,85.087,10.5845]
[1770451330547,52.40119775,85.129,85.07,14.77854899]
[1770451331847,52.40119775,85.129,85.097,10.5833]
[1770451332553,52.76728771,85.157,85.11,14.77854899]
[1770451333754,52.76728771,85.157,85.123,10.58]
[1770451336349,14.77854899,85.18,85.09,14.77854899]
[1770451336350,52.73367768,85.155,85.111,10.5816]
[1770451336546,52.73367768,85.155,85.09,14.77854899]
[1770451337747,52.73367768,85.155,85.109,10.5818]
[1770451337949,52.65049021,85.153,85.031,21.1829]
[1770451338155,52.65049021,85.139,85.05,14.77854899]
[1770451338351,52.65049021,85.137,85.084,10.5849]
[1770451338558,52.65049021,85.135,85.05,14.77854899]
[1770451338754,52.63115985,85.133,85.075,10.586]
[1770451338962,52.63115985,85.131,85.075,10.586]
[1770451339160,52.63115985,85.129,85.075,10.586]
[1770451339457,52.63115985,85.125,85.066,10.5871]
[1770451339662,52.63115985,85.123,85.066,10.5871]
[1770451339854,52.63115985,85.123,85.07,14.77854899]
[1770451340263,52.63105076,85.151,85.09,14.77854899]
[1770451340452,14.77854899,85.16,85.09,14.77854899]
[1770451340453,52.63105076,85.149,85.09,14.77854899]
[1770451340653,52.63105076,85.147,85.09,14.77854899]
[1770451340860,52.20159245,85.145,85.09,14.77854899]
[1770451341461,14.77854899,85.16,85.053,35.19]
[1770451341462,52.20159245,85.143,85.08,14.78851738]
[1770451341662,52.20146999,85.141,85.08,14.78851738]
[1770451342360,52.20146999,85.139,85.08,14.78851738]
[1770451342556,60.97586703,85.138,85.08,14.78851738]
[1770451342755,52.20146999,85.138,85.07,14.78851738]
[1770451342954,52.46329774,85.136,85.05,14.78851738]
[1770451343155,52.46329774,85.134,85.07,14.78851738]
[1770451343360,52.46329774,85.132,85.07,14.78851738]
[1770451343559,52.46329774,85.13,85.06,14.78851738]
[1770451343860,52.46318754,85.128,85.06,14.78851738]
[1770451344764,52.46318754,85.128,85.079,10.5855]
[1770451345359,52.46318754,85.128,85.087,10.5845]
[1770451346260,52.46318754,85.128,85.096,10.5834]
[1770451346455,60.88409531,85.127,85.096,10.5834]
[1770451346661,52.10316817,85.127,85.06,14.78851738]
[1770451346864,52.29804018,85.125,85.06,14.78851738]
[1770451347059,52.29804018,85.123,85.06,14.78851738]
[1770451347260,52.29804018,85.123,85.087,10.5845]
[1770451347460,52.29804018,85.121,85.06,14.78851738]
[1770451347767,52.29804018,85.121,85.078,10.5857]
[1770451348062,52.29804018,85.121,85.029,35.19]
[1770451348063,52.29793055,85.119,85.05,14.78851738]
[1770451348264,52.29793055,85.117,85.04,14.78851738]
[1770451348460,52.29793055,85.115,85.03,14.78851738]
[1770451348657,52.29793055,85.113,85.006,35.19]
[1770451348969,52.03702458,85.099,85.02,14.78851738]
[1770451349262,52.03702458,85.097,85.02,14.78851738]
[1770451349463,52.03702458,85.095,85.02,14.78851738]
[1770451349769,52.03690877,85.079,84.964,21.48226773]
[1770451349965,52.03690877,85.077,84.99,14.78851738]
[1770451350156,52.03690877,85.077,84.944,164.46]
[1770451350157,62.93705481,85.072,84.982,2.04647498]
[1770451350370,52.03690877,85.039,84.982,2.04647498]
[1770451350562,52.03690877,85.037,84.944,164.46]
[1770451350766,51.84101606,85.035,84.952,2.0470227]
[1770451350962,51.84101606,85.031,84.95,14.78851738]
[1770451351269,51.84101606,84.999,84.948,10.6018]
[1770451351566,33.81321606,84.999,84.941,16.8004559]
[1770451351766,14.78851738,85.04,84.961,16.80402789]
[1770451351967,8.76232565,85.039,84.961,16.80402789]
[1770451352164,8.76232565,85.038,84.969,10.5992]
[1770451352468,8.76232565,85.037,84.969,10.5992]
[1770451352657,8.76232565,85.036,84.961,16.80402789]
[1770451352859,14.78851738,85.02,84.942,2.04755867]
[1770451353058,14.78851738,85.0,84.912,17.66554685]
[1770451353264,14.78851738,85.0,84.927,10.6045]
[1770451353462,14.78851738,85.0,84.93,14.78851738]
[1770451353659,49.18305879,84.999,84.931,17.66554685]
[1770451353861,49.18305879,84.999,84.923,1.5540745]
[1770451354663,49.18305879,84.999,84.927,10.6044]
[1770451355372,49.18305879,84.979,84.923,1.5540745]
[1770451355577,49.18305879,84.959,84.901,28.87265689]
[1770451355970,49.18305879,84.959,84.883,28.87868989]
[1770451356172,48.98715826,84.939,84.87,10.6115]
[1770451356475,48.98715826,84.939,84.864,28.87868989]
[1770451356866,48.98715826,84.939,84.866,33.19036341]
[1770451357173,48.98715826,84.919,84.847,33.19036341]
[1770451357475,48.98715826,84.919,84.852,43.80416341]
[1770451357674,48.98715826,84.919,84.853,33.19036341]
[1770451357884,48.98715826,84.919,84.858,10.613]
[1770451358083,48.98715826,84.919,84.853,33.19036341]
[1770451358084,48.98715826,84.919,84.835,33.27375258]
[1770451358284,48.98715826,84.919,84.857,10.6132]
[1770451358488,48.98715826,84.919,84.861,33.27375258]
[1770451358794,14.78851738,84.94,84.861,33.27375258]
[1770451359386,14.78851738,84.94,84.875,10.6109]
[1770451359587,14.78851738,84.96,84.88,14.78851738]
[1770451359782,10.6005,84.959,84.88,14.78851738]
[1770451359978,14.78851738,84.94,84.869,10.6117]
[1770451360180,14.78851738,84.94,84.827,165.1531]
[1770451360181,14.78851738,84.92,84.843,51.19288714]
[1770451360582,14.78851738,84.92,84.832,2.04971743]
[1770451360789,48.98715826,84.899,84.825,51.19288714]
[1770451361081,14.78851738,84.95,84.766,21.2491]
[1770451361082,48.98715826,84.879,84.801,51.19288714]
[1770451361288,48.98715826,84.909,84.821,51.19288714]
[1770451361489,48.98715826,84.889,84.821,51.19288714]
[1770451362382,48.98715826,84.889,84.822,10.6176]
[1770451362585,14.78851738,84.88,84.804,51.19288714]
[1770451362787,48.98715826,84.879,84.804,51.19288714]
[1770451362991,48.98715826,84.879,84.805,10.6197]
[1770451363191,48.98715826,84.879,84.811,51.19288714]
[1770451363391,48.98715826,84.879,84.821,51.19288714]
[1770451363592,48.98715826,84.879,84.836,10.6158]
[1770451363790,48.98715826,84.899,84.836,10.6158]
[1770451363985,48.98715826,84.899,84.841,51.19288714]
[1770451364186,14.78851738,84.95,84.84,14.78851738]
[1770451364187,48.98715826,84.929,84.848,51.19288714]
[1770451364387,48.98715826,84.929,84.86,14.78851738]
[1770451364588,48.98715826,84.929,84.861,51.19288714]
[1770451365699,48.98715826,84.929,84.875,10.611]
[1770451365895,48.98715826,84.929,84.861,51.19288714]
[1770451366090,48.98715826,84.929,84.862,10.6125]
[1770451366892,59.59145826,84.929,84.847,10.6144]
[1770451367098,59.59145826,84.929,84.81,62.0]
[1770451367099,48.98715826,84.929,84.851,51.19288714]
[1770451367794,48.98715826,84.929,84.855,10.6135]
[1770451367997,48.98715826,84.879,84.804,51.19288714]
[1770451368401,48.98715826,84.879,84.811,51.19288714]
[1770451368704,48.98715826,84.879,84.817,10.6182]
[1770451369002,48.98715826,84.879,84.8,14.78851738]
[1770451369203,48.98715826,84.877,84.805,10.6197]
[1770451369895,48.98715826,84.877,84.818,10.6181]
[1770451370596,48.98715826,84.877,84.804,10.6198]
[1770451370798,48.98715826,84.877,84.801,51.19288714]
[1770451371197,48.98715826,84.877,84.815,10.6185]
[1770451371497,48.98715826,84.877,84.801,51.19288714]
[1770451371705,48.98715826,84.877,84.812,10.6188]
[1770451372402,48.98715826,84.877,84.822,10.6175]
[1770451372602,48.98715826,84.869,84.801,51.19288714]
[1770451372995,48.98715826,84.869,84.816,10.6183]
[1770451373192,48.98715826,84.899,84.821,51.19288714]
[1770451373397,48.98715826,84.899,84.841,51.19288714]
[1770451373596,48.98715826,84.929,84.86,14.78851738]
[1770451373797,48.98715826,84.929,84.881,10.6102]
[1770451374003,48.98715826,84.929,84.88,14.78851738]
[1770451374204,48.98715826,84.949,84.88,14.78851738]
[1770451374399,164.7869,85.016,84.85,14.78851738]
[1770451374400,48.98715826,84.969,84.9,14.78851738]
[1770451374805,48.98715826,84.969,84.899,51.19288714]
[1770451375099,48.98715826,84.969,84.912,10.6063]
[1770451375907,48.98715826,84.969,84.899,51.19288714]
[1770451376801,48.98715826,84.969,84.901,10.6076]
[1770451376998,48.98715826,84.969,84.899,51.19288714]
[1770451377794,48.98715826,84.969,84.9,65.98140452]
[1770451377999,48.98715826,84.969,84.901,51.19288714]
[1770451378804,48.98715826,84.966,84.901,51.19288714]
[1770451379003,48.98715826,84.966,84.89,14.78851738]
[1770451379204,48.98715826,84.959,84.88,62.0]
[1770451379505,48.98715826,84.951,84.891,10.6089]
[1770451379710,48.98715826,84.97,84.891,51.19288714]
[1770451380098,48.98715826,84.959,84.854,51.19288714]
[1770451380299,48.98715826,84.959,84.891,51.19288714]
[1770451380809,48.98715826,84.959,84.919,10.6055]
[1770451382108,48.98715826,84.959,84.91,14.78851738]
[1770451382609,10.89642652,85.063,84.93,14.78851738]
[1770451382610,48.98715826,84.999,84.93,14.78851738]
[1770451383309,48.98715826,84.999,84.942,10.6026]
[1770451383898,48.98715826,84.999,84.931,51.19288714]
[1770451384103,48.98715826,84.999,84.9,14.78851738]
[1770451384104,48.98715826,85.029,84.951,51.19288714]
[1770451384507,48.98715826,85.027,84.959,10.6004]
[1770451384805,48.98715826,85.027,84.951,51.19288714]
[1770451385001,48.98715826,85.025,84.951,51.19288714]
[1770451385701,48.98715826,85.025,84.958,10.6006]
[1770451385911,51.19658783,85.009,84.933,49.54433982]
[1770451386209,51.19658783,85.029,84.951,49.54433982]
[1770451386906,51.19658783,85.029,84.958,10.6006]
[1770451387405,51.19658783,85.029,84.951,49.54433982]
[1770451387806,51.19658783,85.047,84.99,14.78851738]
[1770451388311,51.19658783,85.047,84.991,10.5964]
[1770451389008,51.19658783,85.047,85.001,10.5952]
[1770451389407,51.19658783,85.047,84.98,14.78851738]
[1770451389710,51.19658783,85.047,84.96,14.78851738]
[1770451389909,51.16224621,85.044,84.951,51.45716904]
[1770451390406,51.16224621,85.04,84.951,51.45716904]
[1770451390610,51.16224621,85.04,84.975,10.5985]
[1770451391111,51.16224621,85.036,84.964,10.5998]
[1770451392507,51.16224621,85.036,84.976,10.5983]
[1770451392906,51.16224621,85.029,84.961,10.6002]
[1770451393111,51.16224621,85.029,84.951,51.45716904]
[1770451393112,51.16224621,85.029,84.97,14.78851738]
[1770451393503,51.16224621,85.029,84.965,10.5997]
[1770451393710,51.16224621,85.049,84.99,14.78851738]
[1770451394117,51.16224621,85.049,84.971,51.45716904]
[1770451394604,51.16224621,85.049,84.991,51.45716904]
[1770451395004,51.16224621,85.067,84.991,51.45716904]
[1770451395510,51.16224621,85.067,85.018,10.5931]
[1770451395712,51.16224621,85.067,85.011,51.45716904]
[1770451395918,51.16224621,85.067,85.021,10.5927]
[1770451396109,51.16224621,85.067,85.011,51.45716904]
[1770451396715,51.16224621,85.067,85.022,10.5926]
[1770451396918,51.16224621,85.067,85.011,51.45716904]
[1770451398116,51.16224621,85.094,85.03,14.78851738]
[1770451398316,51.16224621,85.089,85.011,51.45716904]
[1770451398615,61.74664621,85.089,85.011,51.45716904]
[1770451399316,51.16224621,85.079,85.011,51.45716904]
[1770451399519,51.16224621,85.069,84.98,14.78851738]
[1770451399716,51.16224621,85.069,85.0,14.78851738]
[1770451399915,51.16224621,85.069,85.02,14.78851738]
[1770451400219,51.16224621,85.069,85.035,10.591]
[1770451400422,51.16224621,85.086,85.035,10.591]
[1770451400621,51.16224621,85.086,85.018,51.45716904]
[1770451400812,51.16224621,85.086,85.02,14.78851738]
[1770451401116,51.16224621,85.086,85.025,10.5923]
[1770451401311,51.16224621,85.086,85.02,14.78851738]
[1770451401513,51.16224621,85.086,85.033,10.5912]
[1770451401714,51.16224621,85.086,85.021,51.45716904]
[1770451402017,51.16224621,85.086,85.04,14.81017759]
[1770451402217,51.16224621,85.086,85.037,10.5907]
[1770451402921,51.16224621,85.086,85.046,10.5896]
[1770451403123,51.16224621,85.086,85.031,51.45716904]
[1770451403323,51.16224621,85.109,85.031,51.45716904]
[1770451403519,51.16224621,85.109,85.05,14.81017759]
[1770451404117,51.16224621,85.109,85.054,10.5886]
[1770451404819,51.16224621,85.106,85.02,14.81017759]
[1770451405018,51.16224621,85.089,85.02,14.81017759]
[1770451405215,51.16224621,85.089,85.01,51.45716904]
[1770451405424,51.16224621,85.075,85.02,10.5928]
[1770451405620,51.16224621,85.075,85.01,51.45716904]
[1770451406224,51.16224621,85.075,85.028,10.5918]
[1770451406627,51.16224621,85.075,85.02,14.81017759]
[1770451406820,51.16224621,85.073,85.02,14.81017759]
[1770451407422,51.16224621,85.073,85.01,51.45716904]
[1770451407824,51.16224621,85.071,85.01,51.45716904]
[1770451408022,51.16224621,85.09,85.04,14.81017759]
[1770451408428,51.16224621,85.09,85.04,25.40057759]
[1770451408625,51.16224621,85.09,85.04,14.81017759]
[1770451409223,51.16224621,85.09,85.047,10.5894]
[1770451409727,51.16224621,85.107,85.054,10.5886]
[1770451409923,51.16224621,85.107,85.041,51.45716904]
[1770451410730,51.16224621,85.107,85.065,10.5873]
[1770451411134,51.16224621,85.107,85.0,14.81017759]
[1770451411135,51.16224621,85.147,85.081,51.45716904]
[1770451411521,51.16224621,85.147,85.1,14.81017759]
[1770451412527,51.16224621,85.147,85.104,10.5824]
[1770451412730,51.16224621,85.176,85.12,14.81017759]
[1770451413128,51.16224621,85.176,85.121,10.5802]
[1770451413336,51.16224621,85.194,85.14,14.81017759]
[1770451414136,51.16224621,85.213,85.152,10.5764]
[1770451414327,14.52829798,85.293,85.12,62.0]
[1770451414328,51.16224621,85.231,85.161,51.45716904]
[1770451414532,51.16224621,85.231,85.18,14.81017759]
[1770451414939,51.16224621,85.252,85.2,14.81017759]
[1770451415235,51.16224621,85.252,85.183,51.45716904]
[1770451415437,51.16224621,85.279,85.22,14.81017759]
[1770451415638,51.16224621,85.309,85.221,51.45716904]
[1770451416034,50.58747078,85.307,85.221,51.45716904]
[1770451416333,50.58747078,85.307,85.24,14.81017759]
[1770451416729,50.58747078,85.307,85.241,50.15200511]
[1770451417137,50.58747078,85.307,85.241,60.71740511]
[1770451417540,50.58747078,85.307,85.241,50.15200511]
[1770451418338,50.58747078,85.329,85.26,14.81017759]
[1770451419432,50.58747078,85.329,85.28,14.81017759]
[1770451419737,50.58747078,85.329,85.26,60.71510511]
[1770451419738,50.58747078,85.329,85.26,64.9621827]
[1770451420736,50.58747078,85.329,85.26,75.5251827]
[1770451421237,50.58747078,85.329,85.26,64.9621827]
[1770451422435,50.58747078,85.329,85.2,14.81017759]
[1770451422436,50.58747078,85.319,85.239,50.15200511]
[1770451422746,50.58747078,85.299,85.23,14.81017759]
[1770451423135,50.58747078,85.299,85.2,14.81017759]
[1770451423136,50.58747078,85.299,85.201,50.15200511]
[1770451423330,50.58747078,85.299,85.24,14.81017759]
[1770451423531,50.58747078,85.319,85.26,14.81017759]
[1770451423743,50.58747078,85.319,85.265,10.5625]
[1770451424645,50.58747078,85.339,85.28,14.81017759]
[1770451425239,50.58747078,85.339,85.268,50.15200511]
[1770451426533,14.81017759,85.33,85.26,14.81017759]
[1770451426737,50.58747078,85.329,85.26,14.81017759]
[1770451427134,50.58747078,85.329,85.261,50.15200511]
[1770451427742,50.58747078,85.329,85.202,35.19]
[1770451427743,50.58747078,85.329,85.242,50.15200511]
[1770451427941,50.58747078,85.309,85.242,50.15200511]
[1770451428948,50.58747078,85.339,85.242,50.15200511]
[1770451429433,14.81017759,85.35,85.187,164.22]
[1770451429434,50.58747078,85.299,85.224,50.15200511]
[1770451430150,50.58747078,85.299,85.187,164.22]
[1770451430151,50.58747078,85.259,85.187,164.22]
[1770451430348,32.94877078,85.259,85.201,50.15200511]
[1770451430652,32.94877078,85.259,85.187,164.22]
[1770451430653,14.81017759,85.3,85.221,50.15200511]
[1770451431038,14.81017759,85.32,85.221,50.15200511]
[1770451431238,14.81017759,85.32,85.256,10.5636]
[1770451431442,14.81017759,85.32,85.241,50.15200511]
[1770451431443,14.81017759,85.33,85.241,50.15200511]
[1770451431643,14.81017759,85.33,85.26,14.81017759]
[1770451431846,10.5527,85.344,85.269,10.5618]
[1770451432548,50.58747078,85.337,85.269,10.5618]
[1770451432944,50.58747078,85.337,85.26,14.81017759]
[1770451432945,10.5572,85.308,85.241,50.15200511]
[1770451433144,50.58747078,85.307,85.22,14.81017759]
[1770451433440,50.58747078,85.307,85.219,50.15200511]
[1770451433641,50.58747078,85.305,85.219,50.15200511]
[1770451433843,50.58747078,85.305,85.22,64.9621827]
[1770451434039,50.58747078,85.305,85.238,10.5657]
[1770451434248,50.58747078,85.305,85.221,50.15200511]
[1770451434249,50.58747078,85.305,85.24,14.81017759]
[1770451435451,50.58747078,85.326,85.26,14.81017759]
[1770451435847,50.58747078,85.326,85.267,10.5622]
[1770451436946,50.58747078,85.326,85.278,10.5608]
[1770451437458,50.58747078,85.326,85.224,164.3841]
[1770451437459,50.58747078,85.326,85.24,14.81017759]
[1770451438351,50.58747078,85.312,85.24,14.81017759]
[1770451438657,50.58747078,85.289,85.22,14.81017759]
[1770451438845,50.58747078,85.283,85.2,14.81017759]
[1770451439047,50.58747078,85.283,85.201,50.15200511]
[1770451439352,50.58747078,85.283,85.235,10.5661]
[1770451439547,50.58747078,85.283,85.21,14.81017759]
[1770451439949,14.81017759,85.29,85.21,14.81017759]
[1770451439950,50.58747078,85.281,85.21,14.81017759]
[1770451440250,50.58747078,85.281,85.201,50.15200511]
[1770451440456,50.58747078,85.281,85.211,50.15200511]
[1770451441050,50.58747078,85.281,85.23,14.81017759]
[1770451441955,50.58747078,85.302,85.252,10.564]
[1770451442259,50.58747078,85.329,85.25,14.81017759]
[1770451442850,50.58747078,85.327,85.25,14.81017759]
[1770451443258,50.58747078,85.327,85.27,14.81017759]
[1770451443450,50.58747078,85.327,85.27,25.37197759]
[1770451444052,50.58747078,85.327,85.281,10.5604]
[1770451444249,50.58747078,85.327,85.27,14.81017759]
[1770451444454,50.58747078,85.325,85.258,10.5633]
[1770451444759,50.58747078,85.325,85.2,179.24097759]
[1770451444760,50.58747078,85.309,85.231,50.15200511]
[1770451444965,50.58747078,85.309,85.212,50.15200511]
[1770451445153,50.58747078,85.283,85.212,50.15200511]
[1770451445557,50.58747078,85.281,85.212,50.15200511]
[1770451447454,50.58747078,85.281,85.239,10.5656]
[1770451447656,50.58747078,85.281,85.212,50.15200511]
[1770451448264,50.58747078,85.281,85.241,10.5654]
[1770451450550,50.58747078,85.281,85.212,50.15200511]
[1770451451160,50.58747078,85.281,85.225,10.5673]
[1770451451664,50.58747078,85.281,85.212,50.15200511]
[1770451451962,50.58747078,85.281,85.23,14.81017759]
[1770451452156,50.58747078,85.281,85.212,50.15200511]
[1770451452363,50.58747078,85.281,85.24,14.81017759]
[1770451452560,50.58747078,85.281,85.212,50.15200511]
[1770451452863,50.58747078,85.281,85.2,14.81017759]
[1770451453559,52.86869112,85.279,85.212,52.33456122]
[1770451453764,52.86869112,85.279,85.22,14.81017759]
[1770451453964,52.86869112,85.279,85.203,52.33456122]
[1770451454458,52.86869112,85.266,85.2,14.81017759]
[1770451454663,52.86869112,85.266,85.185,52.33456122]
[1770451455062,52.86869112,85.261,85.185,52.33456122]
[1770451455263,52.86869112,85.249,85.17,14.81017759]
[1770451455467,52.86869112,85.247,85.17,14.81017759]
[1770451455769,52.86869112,85.239,85.187,10.572]
[1770451455961,52.86869112,85.237,85.187,10.572]
[1770451456158,52.86869112,85.235,85.187,10.572]
[1770451456358,52.86869112,85.229,85.177,10.5734]
[1770451456561,52.86869112,85.227,85.177,10.5734]
[1770451456760,52.86869112,85.209,85.131,52.33456122]
[1770451456960,52.86869112,85.228,85.151,52.33456122]
[1770451457273,52.86869112,85.226,85.17,14.81017759]
[1770451457566,61.6263848,85.225,85.151,52.33456122]
[1770451457767,52.86869112,85.223,85.151,52.33456122]
[1770451457964,8.75769368,85.222,85.151,52.33456122]
[1770451458165,61.6263848,85.221,85.15,14.81017759]
[1770451458470,52.86869112,85.219,85.131,52.33456122]
[1770451458671,52.86869112,85.217,85.131,52.33456122]
[1770451458862,52.86869112,85.209,85.152,10.5764]
[1770451459063,52.86869112,85.207,85.152,10.5764]
[1770451459264,52.86869112,85.205,85.152,10.5764]
[1770451459470,52.86869112,85.203,85.152,10.5764]
[1770451459768,52.86869112,85.201,85.143,10.5776]
[1770451460064,52.86869112,85.189,85.113,52.33456122]
[1770451460266,52.86869112,85.187,85.133,10.5788]
[1770451460461,14.81017759,85.19,85.08,185.3509]
[1770451460462,52.86869112,85.185,85.091,52.33456122]
[1770451460661,52.86869112,85.183,85.091,52.33456122]
[1770451460860,52.86869112,85.181,85.13,10.5791]
[1770451461057,14.81017759,85.19,85.091,52.33456122]
[1770451461058,52.86869112,85.179,85.091,52.33456122]
[1770451461261,52.86869112,85.169,85.072,52.33456122]
[1770451461465,52.86869112,85.149,85.081,52.33456122]
[1770451461864,52.86869112,85.149,85.1,14.79137766]
[1770451462971,52.86869112,85.149,85.081,52.33456122]
[1770451463375,52.86869112,85.149,85.107,10.582]
[1770451464773,52.86869112,85.149,85.1,14.79137766]
[1770451464774,52.86869112,85.149,85.118,10.5807]
[1770451465277,52.86869112,85.149,85.108,10.5819]
[1770451466273,52.86869112,85.149,85.1,14.79137766]
[1770451466274,52.86869112,85.149,85.117,10.5807]
[1770451466671,52.86869112,85.149,85.081,52.33456122]
[1770451466672,52.86869112,85.149,85.09,14.79137766]
[1770451466962,52.86869112,85.149,85.091,52.33456122]
[1770451467766,52.86869112,85.189,85.111,52.33456122]
[1770451468474,52.86869112,85.189,85.13,10.5792]
[1770451468872,52.86869112,85.189,85.091,52.33456122]
[1770451469087,52.86869112,85.159,85.07,14.79137766]
[1770451469269,52.86869112,85.159,85.071,52.33456122]
[1770451469877,52.86869112,85.151,85.095,10.5835]
[1770451470269,52.86869112,85.151,85.049,52.33456122]
[1770451470573,52.86869112,85.119,85.065,10.5872]
[1770451472184,52.86869112,85.119,85.049,52.33456122]
[1770451472185,52.86869112,85.119,85.074,10.5861]
[1770451472476,52.86869112,85.119,85.06,14.79137766]
[1770451472664,52.86869112,85.119,85.061,52.33456122]
[1770451473070,52.86869112,85.119,85.083,10.5849]
[1770451473377,52.86869112,85.139,85.061,52.33456122]
[1770451474377,52.86869112,85.137,85.073,10.5862]
[1770451475079,52.86869112,85.137,85.087,10.5846]
[1770451476374,52.86869112,85.137,85.096,10.5834]
[1770451477780,52.86869112,85.137,85.087,10.5845]
[1770451478383,52.86869112,85.137,85.098,10.5831]
[1770451478770,52.86869112,85.137,85.071,51.19505465]
[1770451479683,54.3390758,85.156,85.091,51.19505465]
[1770451480377,54.3390758,85.156,85.117,10.5807]
[1770451480581,54.3390758,85.156,85.091,51.19505465]
[1770451481375,54.3390758,85.178,85.111,51.19505465]
[1770451481780,14.79137766,85.18,85.111,51.19505465]
[1770451481781,54.3390758,85.176,85.119,10.5805]
[1770451481977,54.3390758,85.176,85.111,51.19505465]
[1770451482172,54.3390758,85.176,85.127,10.5795]
[1770451482781,14.79137766,85.19,85.116,10.5809]
[1770451482782,54.3390758,85.172,85.116,10.5809]
[1770451482981,54.3390758,85.172,85.111,51.19505465]
[1770451483381,54.3390758,85.168,85.111,51.19505465]
[1770451484780,54.3390758,85.168,85.121,10.5803]
[1770451485375,54.3390758,85.185,85.12,14.79137766]
[1770451485583,54.3390758,85.185,85.121,51.19505465]
[1770451485886,54.3390758,85.209,85.149,10.5767]
[1770451486180,54.3390758,85.209,85.141,51.19505465]
[1770451486384,54.3390758,85.209,85.16,14.79137766]
[1770451487280,54.3390758,85.209,85.178,10.5731]